bitfinex/quotes_ETHUSD_20250129
["timestamp","ask_amount","ask_price","bid_price","bid_amount"]
[1738181101369,0.7597,3097.1,3095.5,6.46098]
[1738181101370,3.22891,3097.1,3095.5,6.46098]
[1738181101590,0.7597,3097.6,3096.4,3.98887]
[1738181101767,0.7597,3097.6,3096.4,0.7594]
[1738181101964,3.22856,3097.4,3096.4,0.7594]
[1738181102216,3.22837,3097.6,3096.8,3.22913]
[1738181102510,3.23247,3098.4,3096.4,0.7594]
[1738181102711,3.23247,3098.4,3097.9,3.2279]
[1738181102712,0.005,3098.4,3097.9,3.2279]
[1738181102931,0.005,3098.4,3097.2,0.8243]
[1738181102932,0.005,3098.4,3097.6,3.0]
[1738181103235,0.005,3098.4,3098.3,7.02767]
[1738181103883,3.2254,3100.4,3099.6,3.22621]
[1738181104091,2.34152697,3100.9,3099.9,3.22587]
[1738181104266,2.34152697,3100.9,3099.5,3.995]
[1738181104470,1.51652697,3100.9,3099.5,0.7687]
[1738181104670,1.51652697,3100.9,3099.7,3.0]
[1738181104909,0.1609095,3101.4,3099.7,3.0]
[1738181104910,3.22463,3101.2,3100.3,3.22549]
[1738181105070,0.1609095,3101.4,3099.6,0.65384875]
[1738181105470,0.1609095,3101.4,3099.5,6.99493]
[1738181105471,0.1609095,3101.4,3099.5,0.7687]
[1738181105671,3.22572,3100.1,3099.5,0.7687]
[1738181105894,3.22533,3100.5,3099.5,0.7687]
[1738181106111,3.22507,3100.7,3099.5,0.7687]
[1738181106295,3.2257,3100.1,3099.5,0.7687]
[1738181106612,3.22543,3100.4,3099.5,0.7687]
[1738181106827,3.22561,3100.2,3099.5,0.7687]
[1738181107108,3.2255,3100.3,3099.5,0.7687]
[1738181107308,3.22573,3100.1,3099.5,0.7687]
[1738181107497,3.2255,3100.3,3099.1,3.22673]
[1738181107697,3.22445,3101.3,3099.4,3.22641]
[1738181107916,3.22549,3100.4,3099.0,0.7945]
[1738181108115,3.22455,3101.2,3099.0,0.7945]
[1738181108342,3.22549,3100.3,3097.9,3.2279]
[1738181108477,3.22695,3099.0,3097.9,3.2279]
[1738181108677,3.22601,3099.8,3098.1,3.22768]
[1738181108899,3.0,3100.2,3097.8,3.98986]
[1738181108900,3.22694,3099.0,3097.8,3.98986]
[1738181109099,3.22694,3099.0,3097.8,0.7618]
[1738181109418,3.22694,3099.0,3098.1,3.22772]
[1738181109725,3.22694,3099.0,3097.8,0.7618]
[1738181109726,0.8095,3099.2,3097.8,0.7618]
[1738181110030,0.2,3100.6,3097.8,0.7618]
[1738181110031,3.22661,3099.3,3098.5,3.22732]
[1738181110220,3.22624,3099.6,3098.9,0.7533]
[1738181110374,3.22621,3099.7,3098.9,3.98024]
[1738181110591,3.22643,3099.4,3098.9,0.7533]
[1738181110779,3.22684,3099.0,3098.9,0.7533]
[1738181111018,3.22713,3098.8,3098.0,0.7533]
[1738181111225,3.22638,3099.5,3098.0,0.7533]
[1738181111226,3.22687,3099.0,3098.0,0.7533]
[1738181111391,3.22655,3099.3,3098.3,3.22756]
[1738181111596,3.22655,3099.3,3098.0,0.7533]
[1738181111804,3.22532,3100.5,3098.0,0.7533]
[1738181111805,3.22504,3100.8,3098.0,0.7533]
[1738181112103,4.03506,3100.3,3098.7,3.22706]
[1738181112305,3.22649,3099.4,3098.2,0.768]
[1738181112620,3.0,3099.8,3098.2,0.768]
[1738181112824,3.22707,3098.8,3098.2,0.768]
[1738181113122,3.22592,3099.9,3098.2,3.99558]
[1738181113341,6.45345,3099.2,3098.4,3.22746]
[1738181113504,3.22608,3099.8,3098.2,3.99567]
[1738181113708,3.22719,3098.7,3098.2,0.768]
[1738181114019,3.22644,3099.4,3098.4,3.22738]
[1738181114195,3.8095,3100.3,3098.2,0.768]
[1738181114392,3.22708,3098.8,3098.2,0.768]
[1738181114646,3.22757,3098.3,3098.2,0.768]
[1738181114789,0.8097,3099.2,3097.7,0.7969]
[1738181114790,3.22801,3097.9,3097.7,0.7969]
[1738181114979,3.22801,3097.9,3097.1,0.7969]
[1738181115186,3.22775,3098.2,3097.1,0.7969]
[1738181115430,3.22867,3097.3,3097.1,0.7969]
[1738181115729,3.22736,3098.5,3097.1,0.7969]
[1738181115730,3.22872,3097.2,3097.1,0.7969]
[1738181116024,3.22872,3097.2,3095.7,3.23023]
[1738181116025,3.22894,3097.0,3096.5,0.7789]
[1738181116193,0.769,3097.9,3096.5,0.7789]
[1738181116595,0.769,3098.4,3096.5,0.7789]
[1738181117026,0.7966,3099.2,3097.8,0.7743]
[1738181117333,3.22716,3098.7,3098.0,3.22786]
[1738181117485,0.7966,3099.4,3097.8,4.00237]
[1738181117486,0.7966,3099.4,3097.8,0.7743]
[1738181118121,3.22653,3099.3,3097.8,0.7743]
[1738181118321,3.22833,3097.6,3097.0,0.7968]
[1738181118552,3.55,3099.2,3097.0,0.7968]
[1738181118553,3.55,3099.2,3097.4,3.22843]
[1738181118736,3.22674,3099.1,3097.4,3.22843]
[1738181118927,3.22786,3098.1,3097.4,3.22843]
[1738181119324,3.22757,3098.3,3097.6,3.22821]
[1738181119538,3.22778,3098.2,3097.4,3.22843]
[1738181119755,3.22727,3098.6,3097.0,0.7968]
[1738181120054,3.22716,3098.7,3098.0,0.8167]
[1738181120231,3.22689,3099.0,3098.2,3.22758]
[1738181120428,3.22689,3099.0,3098.0,4.04453]
[1738181120429,3.22689,3099.0,3098.1,3.22778]
[1738181120649,3.22559,3100.3,3098.7,0.7635]
[1738181120843,0.8209,3101.3,3100.0,3.22579]
[1738181121173,3.3852695,3101.4,3100.4,3.22538]
[1738181121455,3.22513,3100.7,3099.9,0.7635]
[1738181121760,3.22513,3100.7,3098.2,0.2]
[1738181121761,0.7594,3100.8,3099.1,0.756]
[1738181121943,3.22651,3099.4,3099.1,0.756]
[1738181122254,3.22713,3098.8,3098.0,3.2278]
[1738181122452,3.22685,3099.0,3097.7,0.756]
[1738181122653,3.22681,3099.1,3098.3,3.22756]
[1738181122832,3.22674,3099.1,3098.3,3.22748]
[1738181123028,3.22591,3099.9,3098.8,0.7912]
[1738181123228,3.22574,3100.1,3098.8,0.7912]
[1738181123430,0.7923,3101.1,3098.8,0.7912]
[1738181123759,3.22476,3101.0,3098.6,3.22726]
[1738181123968,0.1609095,3101.4,3099.8,0.7749]
[1738181123969,3.22465,3101.2,3099.8,0.7749]
[1738181124125,3.3852795,3101.4,3100.6,3.22513]
[1738181124322,0.1609095,3101.4,3099.8,0.7749]
[1738181124669,0.1609095,3101.4,3101.1,0.8194]
[1738181125572,3.22455,3101.2,3101.1,0.8194]
[1738181125734,3.22455,3101.2,3099.2,3.3266]
[1738181125735,3.22471,3101.1,3099.7,0.821]
[1738181125979,3.22445,3101.3,3099.7,0.821]
[1738181126163,0.779,3101.2,3099.0,0.821]
[1738181126461,3.0,3100.6,3099.0,0.821]
[1738181126619,3.22564,3100.2,3099.0,0.821]
[1738181126820,3.22616,3099.7,3099.0,0.821]
[1738181127074,0.779,3101.2,3099.0,0.821]
[1738181127357,3.22414,3101.6,3100.7,3.22505]
[1738181127556,3.22414,3101.6,3100.9,4.00699]
[1738181127861,3.22404,3101.7,3100.9,0.7822]
[1738181128159,3.2238,3102.0,3101.2,3.22454]
[1738181128317,3.7823,3103.0,3101.0,3.22475]
[1738181128318,0.7823,3103.0,3101.0,3.22475]
[1738181128518,0.7823,3103.0,3100.9,4.00705]
[1738181128754,3.22394,3101.8,3101.1,3.22464]
[1738181128935,3.22357,3102.2,3101.1,3.22466]
[1738181129243,3.22303,3102.7,3101.3,4.01405]
[1738181129539,0.7746,3103.7,3101.3,7.01405]
[1738181129540,9.5e-06,3101.4,3101.3,7.01405]
[1738181129924,0.005,3103.4,3101.5,0.7939]
[1738181130218,3.22333,3102.4,3101.5,4.01813]
[1738181130445,3.2225,3103.2,3102.1,4.01751]
[1738181130645,0.005,3103.4,3102.1,0.7939]
[1738181130829,0.005,3103.4,3101.5,0.501813]
[1738181130830,0.005,3103.4,3102.5,3.2232]
[1738181131064,0.005,3103.4,3102.2,3.22351]
[1738181131065,0.005,3103.4,3102.6,0.7779]
[1738181131731,0.005,3103.4,3102.8,3.22285]
[1738181132064,0.005,3103.4,3103.3,3.22237]
[1738181132270,0.005,3103.4,3103.3,4.01817]
[1738181132583,0.005,3103.4,3102.9,3.545005]
[1738181132584,0.1609095,3104.5,3104.2,3.22133]
[1738181132761,3.21936,3106.3,3103.0,8.19443154]
[1738181132762,6.43748,3106.8,3105.0,3.22051]
[1738181133064,6.43748,3106.8,3103.9,3.22174]
[1738181133065,3.21843,3107.1,3105.1,3.25149]
[1738181133278,3.21846,3107.1,3105.6,0.031]
[1738181133639,3.3788895,3107.6,3105.6,0.031]
[1738181133640,3.21945,3106.2,3105.6,0.031]
[1738181133782,3.22022,3105.4,3104.8,0.7649]
[1738181133964,3.21936,3106.3,3104.8,0.7649]
[1738181134174,0.7679,3107.3,3105.6,0.8014]
[1738181134341,3.21905,3106.6,3105.6,4.02135]
[1738181134545,3.21927,3106.3,3105.6,0.8014]
[1738181134739,0.1609095,3107.6,3105.6,1.203558]
[1738181134945,3.21863,3107.0,3105.9,3.21966]
[1738181135144,3.2188,3106.8,3105.7,3.21987]
[1738181135389,0.1609095,3107.6,3105.6,0.8014]
[1738181135595,0.1609095,3107.6,3104.3,0.1600323]
[1738181135596,0.1609095,3107.6,3105.9,0.7971]
[1738181135744,0.1609095,3107.6,3105.0,3.0]
[1738181135745,3.22005,3105.6,3105.0,0.7517]
[1738181135944,3.21918,3106.4,3105.0,0.7517]
[1738181136249,3.21928,3106.3,3105.0,0.7517]
[1738181136480,3.22019,3105.4,3105.0,0.7517]
[1738181136682,3.21995,3105.7,3105.0,0.7517]
[1738181136944,0.4609095,3107.6,3105.8,3.21968]
[1738181136945,3.21884,3106.7,3105.8,3.21968]
[1738181137186,3.21872,3106.9,3105.9,1.083568]
[1738181137399,3.21844,3107.1,3106.2,3.21936]
[1738181137557,0.1609095,3107.6,3106.2,3.21936]
[1738181137558,3.21854,3107.0,3106.2,3.21936]
[1738181137763,3.21854,3107.0,3106.2,3.21928]
[1738181137964,3.21834,3107.2,3106.2,0.321928]
[1738181138192,3.21812,3107.4,3105.9,1.083568]
[1738181138396,3.3788595,3107.6,3106.8,3.21871]
[1738181138567,0.1609095,3107.6,3106.8,3.21874]
[1738181138908,0.1609095,3107.6,3106.7,0.81]
[1738181138909,0.1609095,3107.6,3106.9,3.621424]
[1738181139061,0.1609095,3107.6,3106.9,0.402874]
[1738181139263,0.1609095,3107.6,3107.5,3.21802]
[1738181139604,1.487871,3110.2,3107.4,0.7892]
[1738181139605,3.21596,3109.5,3108.3,3.91559]
[1738181139810,1.287871,3110.2,3108.3,0.6984]
[1738181140100,3.21689,3108.6,3108.3,0.6984]
[1738181140413,0.8768,3110.4,3107.2,0.6984]
[1738181140414,3.22208,3108.4,3107.2,0.6984]
[1738181140627,0.005,3108.4,3107.2,0.6984]
[1738181141273,0.005,3108.4,3107.9,0.7963]
[1738181142103,0.005,3108.4,3108.3,3.21719]
[1738181142345,0.2,3111.4,3108.3,3.21719]
[1738181142346,3.21191,3113.5,3110.7,0.5376]
[1738181142617,2.319,3118.2,3112.3,0.5376]
[1738181142618,3.21099,3114.4,3112.3,0.5376]
[1738181142817,3.21212,3113.2,3113.1,0.1]
[1738181142979,3.21212,3113.2,3112.3,0.5376]
[1738181142980,3.3724395,3113.8,3112.3,0.5376]
[1738181143299,3.21693,3113.4,3112.3,0.5376]
[1738181143473,0.005,3113.4,3112.3,0.5376]
[1738181143807,3.99953,3113.3,3112.3,3.31296]
[1738181144010,0.005,3113.4,3111.6,3.97747]
[1738181144011,0.032627,3113.4,3112.5,0.1]
[1738181144215,3.244557,3113.4,3112.5,0.1]
[1738181144367,3.21215,3113.2,3111.9,5.29443154]
[1738181144679,0.032627,3113.4,3113.3,3.21202]
[1738181144865,0.032627,3113.4,3113.3,0.1]
[1738181145069,0.032627,3113.4,3113.3,3.31202]
[1738181145666,0.032627,3113.4,3113.3,0.1]
[1738181146680,0.032627,3113.4,3113.3,3.31202]
[1738181147011,3.21025,3115.1,3113.3,0.42191393]
[1738181147177,3.21036,3115.0,3114.3,0.1]
[1738181147510,3.2103,3115.0,3114.5,0.1]
[1738181147806,3.2103,3115.0,3114.2,3.99316]
[1738181147807,3.21034,3115.0,3114.3,0.1]
[1738181147977,3.21034,3115.0,3113.5,5.19443154]
[1738181147978,3.2113,3114.0,3113.5,0.9089]
[1738181148304,3.21037,3114.9,3113.0,0.1]
[1738181148469,3.21037,3114.9,3112.9,0.81]
[1738181148470,3.21192,3113.5,3113.2,0.1]
[1738181148875,3.21181,3113.6,3113.2,0.1]
[1738181149180,3.0,3114.1,3112.9,0.91]
[1738181149380,3.21174,3113.6,3113.1,0.1]
[1738181149579,0.2,3115.3,3112.9,0.81]
[1738181149580,3.21108,3114.3,3113.6,0.1]
[1738181149988,0.8004,3115.5,3114.2,0.1]
[1738181150198,0.8004,3115.5,3114.1,0.8634]
[1738181150412,3.21031,3115.0,3114.4,0.1]
[1738181150579,3.21037,3114.9,3114.4,0.1]
[1738181150776,3.21014,3115.2,3114.4,0.1]
[1738181150975,0.8004,3115.5,3114.5,0.1]
[1738181151205,0.8004,3115.5,3114.1,0.8634]
[1738181151511,3.21155,3113.8,3113.5,0.9096]
[1738181151713,0.015,3114.8,3113.0,3.21228]
[1738181151714,3.21135,3114.0,3113.3,0.1]
[1738181151871,3.21176,3113.6,3113.3,0.1]
[1738181152072,3.21058,3114.7,3113.0,0.8096]
[1738181152073,3.0,3114.6,3113.2,0.1]
[1738181152310,3.21202,3113.4,3113.0,0.9096]
[1738181152513,3.21202,3113.4,3113.2,0.1]
[1738181152712,3.2125,3112.9,3112.6,0.1]
[1738181152918,3.21179,3113.6,3112.6,0.1]
[1738181153087,3.21179,3113.6,3112.1,0.1]
[1738181153088,3.21315,3112.3,3112.1,0.1]
[1738181153297,3.21254,3112.8,3112.1,0.1]
[1738181153529,3.21331,3112.1,3111.9,0.1]
[1738181153688,0.0075,3113.0,3111.7,0.1]
[1738181153889,0.5575,3113.1,3111.7,0.1]
[1738181153890,3.21339,3112.0,3111.7,0.1]
[1738181154129,3.21322,3112.2,3111.5,0.7892]
[1738181154130,3.2132,3112.2,3111.5,0.7892]
[1738181154432,3.21368,3111.7,3111.5,0.8892]
[1738181154594,0.7826,3112.8,3111.5,0.8892]
[1738181154794,0.8093,3114.1,3112.5,0.1]
[1738181155114,3.21251,3112.9,3112.6,0.8157]
[1738181155301,3.21175,3113.6,3112.6,0.8157]
[1738181155631,0.8093,3114.1,3112.1,0.8296]
[1738181155632,3.0,3113.7,3112.1,0.8296]
[1738181155930,3.21269,3112.7,3112.2,0.1]
[1738181156098,3.21296,3112.4,3112.1,0.8296]
[1738181156433,3.21296,3112.4,3111.9,0.1]
[1738181156633,0.8225,3113.0,3111.9,0.1]
[1738181156818,0.8272,3113.6,3112.6,0.1]
[1738181157147,13.0,3117.1,3111.6,0.8296]
[1738181157148,0.8272,3114.2,3112.1,0.1]
[1738181157433,3.21265,3112.7,3112.3,0.1]
[1738181157652,3.21246,3112.9,3112.3,0.1]
[1738181157809,3.2109,3114.4,3112.5,0.1]
[1738181158133,3.21252,3112.9,3112.5,0.1]
[1738181158331,3.21263,3112.8,3112.6,0.1]
[1738181158494,3.21303,3112.4,3111.8,0.1]
[1738181158690,3.21343,3112.0,3111.7,0.1]
[1738181158896,3.21143,3113.9,3112.1,3.31324]
[1738181159105,3.21267,3112.7,3112.1,0.1]
[1738181159305,3.21305,3112.4,3111.9,0.1]
[1738181159534,3.21212,3113.2,3111.7,0.1]
[1738181159739,3.0075,3113.2,3111.7,0.1]
[1738181159954,0.8084,3113.4,3111.7,0.1]
[1738181160247,0.565,3112.6,3111.1,0.1]
[1738181160406,0.0075,3112.3,3110.7,0.1]
[1738181160613,0.0075,3112.4,3111.2,0.1]
[1738181160810,3.21409,3111.3,3111.1,0.1]
[1738181161009,0.7743,3112.5,3111.3,0.1]
[1738181161010,3.21388,3111.6,3111.3,0.1]
[1738181161237,0.7743,3113.0,3111.9,0.1]
[1738181161410,3.21343,3112.0,3111.8,0.1]
[1738181161610,3.9867,3113.0,3111.5,0.8174]
[1738181161611,3.21365,3111.8,3111.5,0.8174]
[1738181161809,0.7743,3113.0,3112.2,0.1]
[1738181162263,3.21357,3111.8,3111.7,0.1]
[1738181162408,0.565,3112.9,3111.4,0.1]
[1738181162409,0.0075,3112.4,3111.4,0.1]
[1738181162614,0.0075,3112.1,3111.0,0.8302]
[1738181162922,3.21249,3112.9,3111.6,3.21373]
[1738181163247,3.21249,3112.9,3111.5,0.1]
[1738181163248,3.21255,3112.8,3112.4,0.1]
[1738181163447,0.8203,3113.5,3112.0,0.7749]
[1738181163701,6.21228,3113.1,3112.2,0.1]
[1738181163949,4.03212,3113.5,3113.0,0.1]
[1738181164172,3.54635034,3114.6,3112.7,3.21262]
[1738181164173,3.21155,3113.8,3113.5,0.1]
[1738181164329,3.21189,3113.5,3112.9,0.1]
[1738181164668,3.21254,3112.8,3112.7,0.8642]
[1738181164816,0.0075,3113.1,3112.1,0.9312]
[1738181165012,3.21281,3112.6,3112.3,0.1]
[1738181165268,3.21316,3112.2,3112.1,0.1]
[1738181165428,3.22024,3112.6,3111.4,0.9303]
[1738181165631,3.21387,3111.6,3111.4,0.9303]
[1738181166013,0.2,3113.9,3111.8,0.1]
[1738181166215,3.0,3112.8,3111.7,0.1]
[1738181166461,3.21292,3112.5,3112.1,0.1]
[1738181166771,0.756,3113.5,3112.5,0.1]
[1738181166979,3.21169,3113.7,3113.2,0.1]
[1738181167133,3.2114,3113.9,3112.8,0.1]
[1738181167340,3.21197,3113.4,3113.1,0.1]
[1738181167588,3.2113,3114.1,3113.1,0.1]
[1738181167589,3.21123,3114.1,3113.7,0.1]
[1738181167849,3.21123,3114.1,3112.6,0.8001]
[1738181167850,3.21101,3114.3,3113.9,0.1]
[1738181168029,3.21138,3114.0,3113.6,0.1]
[1738181168227,3.21037,3114.9,3112.9,0.1]
[1738181168228,3.21233,3113.0,3112.9,0.1]
[1738181168664,0.0075,3113.0,3111.9,0.1]
[1738181168829,0.0075,3113.0,3111.6,0.8332]
[1738181168830,3.21367,3111.7,3111.6,0.1]
[1738181169349,0.2,3114.1,3112.2,0.1]
[1738181169551,3.21254,3112.8,3112.0,0.1]
[1738181169756,3.21254,3112.8,3112.7,0.1]
[1738181169957,3.21254,3112.8,3112.0,0.1]
[1738181170126,3.21326,3112.1,3112.0,0.1]
[1738181170326,3.21326,3112.1,3111.1,0.8332]
[1738181170327,3.21276,3112.6,3112.2,0.1]
[1738181170652,3.21305,3112.3,3112.0,0.1]
[1738181170853,3.21314,3112.3,3112.2,0.1]
[1738181171066,3.21287,3112.5,3112.4,0.1]
[1738181171262,3.21244,3112.9,3112.6,0.1]
[1738181171417,0.7822,3113.5,3113.0,0.1]
[1738181171722,3.21181,3113.5,3113.4,0.1]
[1738181172252,0.8208,3114.9,3114.0,0.1]
[1738181172461,3.21094,3114.4,3114.2,0.1]
[1738181172633,3.2112,3114.1,3114.0,0.1]
[1738181173057,3.2112,3114.1,3113.2,0.8307]
[1738181173058,0.8208,3114.9,3113.8,0.1]
[1738181173353,3.0,3114.1,3114.0,0.1]
[1738181173559,3.2114,3113.9,3113.6,0.1]
[1738181173862,3.2117,3113.7,3113.1,0.1]
[1738181174157,3.21274,3112.6,3112.3,0.1]
[1738181174461,3.21274,3112.6,3112.0,0.1]
[1738181174462,3.21326,3112.1,3112.0,0.1]
[1738181174617,3.21326,3112.1,3111.7,0.1]
[1738181174818,3.21388,3111.5,3111.4,0.1]
[1738181175613,3.21376,3111.7,3110.9,0.1]
[1738181175614,3.2144,3111.0,3110.9,0.1]
[1738181175850,3.21502,3110.4,3110.3,0.46612222]
[1738181176055,3.21463,3110.8,3110.3,0.46612222]
[1738181176254,6.22168,3111.3,3110.3,0.46612222]
[1738181176255,3.21411,3111.3,3110.3,0.46612222]
[1738181176461,0.7683,3112.3,3110.9,3.0]
[1738181176765,3.21289,3112.5,3111.8,0.8286]
[1738181177054,3.98063,3113.1,3111.8,0.8286]
[1738181177253,0.7683,3113.1,3111.8,4.04217]
[1738181177561,0.7683,3113.1,3111.8,0.8286]
[1738181177562,3.21999,3112.9,3111.8,0.8286]
[1738181177738,3.21302,3112.4,3111.8,0.8286]
[1738181178066,3.21314,3112.3,3111.8,0.8286]
[1738181178235,3.21286,3112.5,3111.8,0.8286]
[1738181178435,0.7683,3113.1,3111.8,0.8286]
[1738181178649,3.21347,3111.9,3111.8,0.8286]
[1738181178869,3.21384,3111.6,3111.2,0.7897]
[1738181179028,3.0,3112.2,3111.1,0.46612222]
[1738181179391,0.7683,3113.1,3111.2,3.21419]
[1738181179392,3.21298,3112.4,3111.2,3.21419]
[1738181179589,3.21298,3112.4,3111.1,0.46612222]
[1738181179590,0.7683,3113.1,3111.4,0.55]
[1738181179732,3.21268,3112.7,3111.3,0.813]
[1738181180081,0.7683,3113.1,3111.3,0.813]
[1738181180082,3.21352,3111.9,3111.3,0.813]
[1738181180230,3.21337,3112.0,3111.3,0.813]
[1738181180428,3.21305,3112.3,3110.6,0.7925]
[1738181180674,3.21427,3111.2,3110.6,0.7925]
[1738181180890,0.0075,3111.7,3110.6,0.7925]
[1738181181164,3.21344,3112.0,3110.8,3.0]
[1738181181337,3.21344,3112.0,3110.7,0.29204023]
[1738181181338,3.0,3112.9,3110.7,0.29204023]
[1738181181538,0.0075,3111.9,3110.7,0.29204023]
[1738181181722,3.2146,3110.8,3110.7,0.29204023]
[1738181181928,3.21448,3111.0,3110.7,0.29204023]
[1738181181929,3.21451,3110.9,3110.7,0.29204023]
[1738181182255,3.21448,3111.0,3110.7,0.29204023]
[1738181182256,3.2146,3110.8,3110.7,2.3e-07]
[1738181182431,6.7796,3110.8,3110.7,2.3e-07]
[1738181182834,3.21587,3109.6,3109.0,0.8073]
[1738181183033,3.21567,3109.8,3109.0,0.8073]
[1738181183265,3.2152,3110.3,3109.0,0.8073]
[1738181183442,0.8184,3110.7,3109.0,0.8073]
[1738181183832,3.21586,3109.6,3109.0,0.8073]
[1738181184031,3.0,3110.5,3108.4,0.8254]
[1738181184233,3.21574,3109.7,3108.7,3.21676]
[1738181184479,3.76481,3110.6,3108.4,0.8254]
[1738181184480,3.21481,3110.6,3108.5,3.2169]
[1738181184683,3.21481,3110.6,3108.4,0.8254]
[1738181184684,3.21581,3109.7,3108.9,3.21649]
[1738181184989,3.21668,3108.8,3108.4,0.8254]
[1738181185194,3.21564,3109.8,3108.4,4.04246]
[1738181185339,3.21498,3110.5,3108.4,0.8254]
[1738181185536,3.21654,3109.0,3108.4,0.8254]
[1738181185732,3.21657,3108.9,3108.4,0.8254]
[1738181185981,3.21646,3109.1,3108.4,4.04241]
[1738181186328,4.60089,3109.6,3108.8,3.21665]
[1738181186329,3.21591,3109.6,3108.8,3.21665]
[1738181186446,3.21573,3109.8,3108.5,0.55]
[1738181186649,3.21588,3109.6,3108.4,0.8254]
[1738181186993,3.0,3109.6,3108.9,3.21647]
[1738181187190,3.21545,3110.0,3109.1,3.21635]
[1738181187394,3.21583,3109.7,3108.9,3.21654]
[1738181187592,3.21625,3109.3,3108.5,3.21698]
[1738181187883,3.21615,3109.3,3108.4,0.8254]
[1738181188035,3.2166,3108.9,3108.4,0.8254]
[1738181188394,3.21636,3109.1,3108.4,0.8254]
[1738181188543,3.0,3109.4,3108.4,1.22965]
[1738181188739,3.21574,3109.7,3108.8,3.21664]
[1738181189094,3.0,3109.6,3109.0,3.21642]
[1738181189237,3.0,3109.6,3108.8,3.21666]
[1738181189656,6.21588,3109.6,3108.4,0.8254]
[1738181189867,3.99499,3110.4,3108.4,0.8254]
[1738181189868,3.21602,3109.5,3108.4,0.8254]
[1738181190045,6.21574,3109.7,3108.4,0.8254]
[1738181190281,3.21683,3108.7,3107.8,3.2177]
[1738181190516,3.21637,3109.1,3108.4,3.21701]
[1738181190680,3.21625,3109.3,3107.9,3.0]
[1738181190893,3.0,3109.4,3108.8,3.21666]
[1738181191096,3.0,3109.4,3108.5,3.21695]
[1738181191097,3.21518,3110.3,3109.5,3.21586]
[1738181191289,3.21518,3110.3,3108.5,3.0]
[1738181191290,3.21492,3110.5,3109.8,3.21555]
[1738181191495,3.21448,3111.0,3110.2,3.21521]
[1738181191702,0.1,3112.6,3109.7,0.8174]
[1738181191703,3.21407,3111.4,3109.7,0.8174]
[1738181191875,3.21428,3111.2,3110.4,3.21501]
[1738181192190,3.21469,3110.8,3110.0,3.21539]
[1738181192395,3.21404,3111.4,3110.0,0.321539]
[1738181192611,0.7736,3112.3,3110.9,3.99976]
[1738181192777,3.21388,3111.5,3110.9,0.7853]
[1738181192980,3.21417,3111.3,3110.6,3.21481]
[1738181193182,3.21491,3110.5,3109.8,0.7701]
[1738181193477,3.21471,3110.7,3109.8,3.98567]
[1738181193706,3.21446,3111.0,3110.2,3.21515]
[1738181193958,3.21471,3110.7,3110.0,3.2154]
[1738181194105,0.015,3111.2,3109.8,3.98571]
[1738181194412,3.21605,3109.4,3108.8,0.7982]
[1738181194585,3.21634,3109.2,3108.8,0.7982]
[1738181194787,3.21657,3109.0,3108.8,0.7982]
[1738181194970,3.21626,3109.2,3108.8,0.7982]
[1738181194971,3.21635,3109.2,3108.8,0.7982]
[1738181195176,3.21611,3109.4,3107.8,0.64722149]
[1738181195177,0.0075,3109.4,3108.2,0.8135]
[1738181195416,3.0,3109.0,3108.2,0.8135]
[1738181195622,3.21685,3108.7,3108.2,0.8135]
[1738181195778,3.21696,3108.6,3108.2,0.8135]
[1738181196104,3.21705,3108.5,3108.2,0.8135]
[1738181196307,3.21741,3108.1,3107.7,0.8218]
[1738181196614,3.21733,3108.2,3107.7,0.8218]
[1738181196800,3.7722,3109.1,3107.7,0.8218]
[1738181196801,0.7722,3109.1,3107.7,0.8218]
[1738181196998,3.21522,3110.2,3107.8,3.21771]
[1738181197201,3.21729,3108.2,3107.7,0.8218]
[1738181197414,0.7689,3109.2,3107.7,0.8218]
[1738181197576,3.21763,3107.9,3107.7,0.8218]
[1738181197780,0.0075,3108.4,3107.2,0.7699]
[1738181197979,0.0075,3108.4,3107.1,0.005]
[1738181197980,3.21653,3109.0,3107.6,3.21783]
[1738181198182,0.8075,3109.8,3108.6,3.21678]
[1738181198408,3.21575,3109.7,3108.8,3.21667]
[1738181198612,3.21575,3109.7,3109.0,3.21638]
[1738181198961,3.21575,3109.7,3108.7,0.7699]
[1738181198962,3.21553,3109.9,3108.7,0.7699]
[1738181199083,3.21694,3108.6,3108.2,0.7708]
[1738181199418,3.21694,3108.6,3107.6,3.21789]
[1738181199419,3.21613,3109.4,3108.7,3.21673]
[1738181199715,0.0075,3109.5,3108.3,3.21719]
[1738181199716,3.0,3109.1,3108.3,3.21719]
[1738181199923,0.015,3109.5,3107.2,0.813]
[1738181200118,3.21724,3108.3,3107.6,3.2179]
[1738181200280,3.21764,3107.9,3107.2,4.03131]
[1738181200481,3.21809,3107.5,3107.2,0.813]
[1738181200732,3.21811,3107.5,3107.1,0.005]
[1738181200932,3.21631,3109.2,3107.1,0.005]
[1738181201224,3.21607,3109.4,3107.1,0.005]
[1738181201519,3.9863,3109.1,3107.7,0.8046]
[1738181201720,3.21735,3108.2,3107.7,0.8046]
[1738181201919,3.21646,3109.0,3107.7,0.8046]
[1738181202232,3.21647,3109.0,3107.7,0.8046]
[1738181202522,0.7748,3109.6,3108.5,3.21691]